Cogmind - Beta 14 @@@ ROGUE MODE // 2025.03.18 @ 22:15:45 Player: Takagiro Result: Destroyed by S-10 Pest with Light Assault Rifle Performance ------------- Evolutions (0) 0 Regions Visited (2) 400 Robots Destroyed (18) 90 Value Destroyed (504) 504 Prototype IDs (2) 40 Alien Tech Used (0) 0 Bonus (0) 0 TOTAL SCORE: 1034 Bonus ------- None Cogmind --------- Core Integrity 0/250 Matter 300/300 Energy 325/325 System Corruption 0% Temperature Cool (0) Movement Walking (120) Location -10/Subcaves Parts ------- > --- POWER (1) -------- Light Ion Engine > --- PROPULSION (2) --- Aluminum Leg > --- UTILITY (2) ------ Heat Sink Large Battery > --- WEAPON (2) ------- Light Assault Rifle Light Assault Rifle > --- INVENTORY (5) ---- Light Ion Engine Light Armor Plating Light Assault Rifle Peak State ------------ > --- POWER ------------ Ion Engine > --- PROPULSION ------- Aluminum Leg Aluminum Leg > --- UTILITY ---------- Heat Sink Large Battery > --- WEAPON ----------- Light Assault Rifle Light Assault Rifle > --- INVENTORY -------- Light Ion Engine Light Ion Engine Light Armor Plating Light Assault Rifle [Rating: 7] Favorites ----------- Power Ion Engine Engine Ion Engine Propulsion Aluminum Leg Leg Aluminum Leg Utility Large Battery Device Heat Sink Storage Large Battery Processor Targeting Computer Weapon Light Assault Rifle Energy Gun EM Pulse Gun Ballistic Gun Light Assault Rifle Special Melee Weapon Datajack Build | -11 -10 -10 ------- Run | Yrd Mat Sub Slots Evolved . | . . . Power . | . . . Propulsion . | . . . Utility . | . . . Weapon . | . . . Parts Attached 17 | 4 13 . Power 4 | 1 3 . Engine 4 | 1 3 . Core . | . . . Reactor . | . . . Propulsion 4 | 2 2 . Treads . | . . . Leg 4 | 2 2 . Wheel . | . . . Hover . | . . . Flight . | . . . Utility 4 | . 4 . Device 2 | . 2 . Storage 1 | . 1 . Processor 1 | . 1 . Hackware . | . . . Protection . | . . . Artifact . | . . . Weapon 5 | 1 4 . Energy Gun 1 | 1 . . Energy Cannon . | . . . Ballistic Gun 3 | . 3 . Ballistic Cannon . | . . . Launcher . | . . . Special Weapon . | . . . Impact Weapon . | . . . Slashing Weapon . | . . . Piercing Weapon . | . . . Special Melee Weapon 1 | . 1 . Unidentified Prototypes . | . . . Parts Lost 4 | . 4 . Power 2 | . 2 . Propulsion 1 | . 1 . Utility . | . . . Weapon 1 | . 1 . Highest Loss Streak 2 | . 2 . To Critical Strikes . | . . . Average Slot Usage (%) 83 | . 83 85 Engine 13 | . 13 14 Leg 25 | . 26 14 Device 11 | . 10 14 Storage 13 | . 13 14 Processor 1 | . 1 . Energy Gun 4 | . 4 . Ballistic Gun 13 | . 12 28 Peak Build Rating 7 | 4 7 6 Average Rating 5 | 1 5 6 On Entrance 3 | . 4 6 Naked Turns . | . . . Heaviest Build 11 | 7 11 9 Greatest Support 20 | 20 20 10 Greatest Overweight (x) . | . . . Average Overweight (x) . | . . . Largest Inventory Capacity 5 | 5 5 5 Average Capacity 5 | 5 5 5 Most Carried 5 | 5 5 3 Average Carried 4 | 1 4 3 Final Capacity 5 | 5 5 5 Final Carried 3 | 3 3 3 Class Distribution -------------------- 100% | Mutant Dominant Class ---------------- Mutant | -10/Materials Mutant | -10/Subcaves Resources | -11 -10 -10 ----------- Run | Yrd Mat Sub Matter Collected 461 | 226 235 . Remotely . | . . . Salvage Created 602 | . 602 . Parts 42 | . 42 . Haulers Intercepted . | . . . Recyclers Shooed . | . . . Parts Field Recycled . | . . . Retrieved Matter . | . . . Parts Self-Destructed 3 | . . 3 Prevented . | . . . Kills | -11 -10 -10 ------- Run | Yrd Mat Sub Combat Hostiles Destroyed 14 | . 14 . Guns 14 | . 14 . Classes Destroyed 4 | . 4 . Operator 1 | . 1 . Watcher 3 | . 3 . Swarmer 3 | . 3 . Grunt 11 | . 11 . Best Kill Streak 5 | . 5 . Combat Bots Only 4 | . 4 . Max Kills in Single Turn 1 | . 1 . Gunslinging . | . . . Exploded . | . . . Melee . | . . . Uniques/NPCs Destroyed . | . . . Combat | -11 -10 -10 -------- Run | Yrd Mat Sub Hostile Shots Fired 114 | . 108 6 Missed 38 | . 36 2 Damage Taken 889 | . 838 51 Core 259 | . 216 43 Absorbed by Shields . | . . . Regen/Repaired (Parts) 202 | . 202 . Core Remaining (%) 100 | 100 . . Volleys Fired 107 | . 107 . Largest 2 | . 2 . Hottest 40 | . 40 . Shots Fired 126 | . 126 . Gun 126 | . 126 . Cannon . | . . . Launcher . | . . . Special . | . . . Kinetic 105 | . 105 . Thermal . | . . . Explosive . | . . . Electromagnetic 21 | . 21 . Robot Hit Streak 7 | . 7 . Robot Miss Streak 5 | . 5 . Penetration Max . | . . . Secondary Targets . | . . . Shots Hit Robots 84 | . 84 . Core Hits 40 | . 40 . Critical Kills . | . . . Critical Parts Destroyed . | . . . Critical Strikes . | . . . Melee Attacks . | . . . Impact . | . . . Slashing . | . . . Piercing . | . . . Sneak Attacks . | . . . Combat Hostiles . | . . . Follow-up Attacks . | . . . Damage Inflicted 764 | . 764 . Guns 741 | . 741 . Cannons . | . . . Explosions 21 | . 21 . Melee . | . . . Ramming 2 | . 2 . Kinetic 553 | . 553 . Thermal 21 | . 21 . Explosive . | . . . Electromagnetic 188 | . 188 . Impact . | . . . Slashing . | . . . Piercing . | . . . Highest Corruption . | . . . Average Corruption . | . . . Corruption Purged . | . . . Corruption Blocked . | . . . Overload Shots . | . . . Overflow Damage . | . . . Projectiles . | . . . Explosions . | . . . Melee . | . . . Knockbacks . | . . . Impact . | . . . Kinetic . | . . . Secondary . | . . . Self-Inflicted Damage . | . . . Shots . | . . . Rammed . | . . . Targets Rammed 1 | . 1 . Kicked 1 | . 1 . Crushed . | . . . Highest Temperature 77 | . 77 . Average Temperature 34 | . 34 . Received Heat Transfer 459 | . 450 9 Siege Activations . | . . . Robots Corrupted . | . . . Combat Hostiles . | . . . Parts Fried 1 | . 1 . Impact Corruptions . | . . . Robots Melted . | . . . Combat Hostiles . | . . . Parts Melted . | . . . Heat Transferred 50 | . 50 . Parts Sabotaged . | . . . Parts Stolen . | . . . Parts Stripped . | . . . Power Chain Reactions 1 | . 1 . Alert | -11 -10 -10 ------- Run | Yrd Mat Sub Peak Influence 208 | . 208 . Initial . | . . . Average 58 | . 62 . Maximum Alert Level 1 | . 1 . Low Security (%) 97 | 100 97 . Level 1 2 | . 2 . Level 2 . | . . . Level 3 . | . . . Level 4 . | . . . Level 5 . | . . . High Security . | . . . Max Security . | . . . Squads Dispatched 4 | . 4 . Investigation 4 | . 4 . Extermination . | . . . Reinforcement . | . . . Assault . | . . . Garrison . | . . . Intercept . | . . . Searches Triggered . | . . . Construction Impeded . | . . . Haulers Reinforced . | . . . Active Scanning Responses . | . . . Cargo Convoy Interrupts . | . . . Stealth | -11 -10 -10 --------- Run | Yrd Mat Sub Distress Signals 2 | . 2 . Communications Jammed . | . . . Distress Signals . | . . . Times Spotted 31 | . 23 8 Peak Tracking Total 5 | . 5 5 Tactical Retreats . | . . . Traps | -11 -10 -10 ------- Run | Yrd Mat Sub Traps Triggered . | . . . Indirectly . | . . . Trap Hack Attempts . | . . . Triggered . | . . . Disarmed . | . . . Reprogrammed . | . . . Reused . | . . . Traps Extracted . | . . . Installed . | . . . Triggered . | . . . Machines | -11 -10 -10 ---------- Run | Yrd Mat Sub Machines Disabled 1 | . 1 . Max in Single Turn 1 | . 1 . Machines Repaired . | . . . Machines Dismantled . | . . . Machines Sabotaged . | . . . Overloaded Fab Kills . | . . . Hacking | -11 -10 -10 --------- Run | Yrd Mat Sub Machines Accessed 9 | . 9 . Terminals 7 | . 7 . Fabricators . | . . . Repair Stations 1 | . 1 . Recycling Units 1 | . 1 . Scanalyzers . | . . . Garrison Access . | . . . Total Hacks 34 | . 34 . Successful 24 | . 24 . Failed 10 | . 10 . Catastrophic 1 | . 1 . Database Lockouts . | . . . Manual . | . . . Terminals 22 | . 22 . Fabricators . | . . . Repair Stations 10 | . 10 . Recycling Units 2 | . 2 . Scanalyzers . | . . . Garrison Access . | . . . Terminal Hacks 15 | . 15 . Record 4 | . 4 . Robot Analysis 1 | . 1 . Prototype ID Bank 2 | . 2 . Branch Access Points 1 | . 1 . Emergency Access Points 1 | . 1 . Unreport Threat 1 | . 1 . Locate Traps 1 | . 1 . Dispatch Records 2 | . 2 . Hauler Manifests 1 | . 1 . Zone Layout 1 | . 1 . Fabricator Hacks . | . . . Repair Station Hacks 8 | . 8 . Scan Component 4 | . 4 . Repair 4 | . 4 . Recycling Unit Hacks 1 | . 1 . Process 1 | . 1 . Scanalyzer . | . . . Garrison Access Hacks . | . . . Unauthorized Hacks . | . . . Terminals . | . . . Fabricators . | . . . Repair Stations . | . . . Recycling Units . | . . . Scanalyzers . | . . . Garrison Access . | . . . Data Cores Recovered 1 | . 1 . Used 1 | . 1 . Hacking Detections 7 | . 7 . Full Trace Events 4 | . 4 . Feedback Events . | . . . Feedback Blocked . | . . . Robot Schematics Acquired . | . . . Robots Built . | . . . Authchips . | . . . Time . | . . . Total Robot Build Rating . | . . . Part Schematics Acquired . | . . . Parts Built . | . . . Authchips . | . . . Time . | . . . Total Part Build Rating . | . . . Parts Repaired 4 | . 4 . Time 104 | . 104 . Parts Recycled . | . . . Recycled Matter 153 | . 153 . Retrieved Matter . | . . . Retrieved Components . | . . . Parts Scanalyzed . | . . . Part Schematics Acquired . | . . . Parts Damaged . | . . . Bothacking | -11 -10 -10 ------------ Run | Yrd Mat Sub Used RIF Installer . | . . . Robots Hacked . | . . . Non-combat . | . . . Combat . | . . . Robot Hacks Applied . | . . . Relay Couplers Released . | . . . Fabnet Peak Effective % . | . . . Robots Rewired . | . . . Allies Hacked . | . . . Hacks Repelled . | . . . Allies | -11 -10 -10 -------- Run | Yrd Mat Sub Total Allies . | . . . Largest Group . | . . . Highest-Rated Group . | . . . Highest-Rated Ally . | . . . Total Orders . | . . . Ally Attacks . | . . . Total Damage . | . . . Kills . | . . . Allies Corrupted . | . . . Allies Melted . | . . . Intel | -11 -10 -10 ------- Run | Yrd Mat Sub Robot Analysis Total 1 | . 1 . Derelict Logs Recovered . | . . . Drone Launches . | . . . Drone Recoveries . | . . . Exploration | -11 -10 -10 ------------- Run | Yrd Mat Sub Turns Passed 1337 | 69 1153 115 Spaces Moved 796 | 65 635 96 Core 37 | 37 . . Treads . | . . . Legs 759 | 28 635 96 Wheels . | . . . Hover . | . . . Flight . | . . . Fastest Speed 50 | 50 120 120 Average Speed 116 | 80 120 120 Slowest Speed 120 | 120 120 120 Overloaded Moves . | . . . Propulsion Burnouts . | . . . Robots Hopped . | . . . Cave-ins Triggered . | . . . Exploration Rate (%) 31 | 4 79 12 Regions Visited 2 Branch Regions 1 Pre-discovered Areas . | . . . Known Exits Taken . | . . . Unknown Exits Taken 2 | 1 1 . Scrap Searched . | . . . Spaces Dug . | . . . Terrain Destroyed 2 | . 2 . Melee . | . . . Projectile . | . . . AOE 2 | . 2 . Terrain Rammed . | . . . Walls Destroyed . | . . . Machines Disabled . | . . . Actions | -11 -10 -10 --------- Run | Yrd Mat Sub Total 1099 | 82 921 96 Wait 156 | 7 149 . Move 794 | 64 634 96 Hop . | . . . Pick Up 18 | 7 11 . Fast Attach 5 | . 5 . Attach 12 | 4 8 . Detach . | . . . Swap . | . . . Drop 6 | . 6 . Fire 107 | . 107 . Melee . | . . . Ram . | . . . Kick 1 | . 1 . Crush . | . . . Escape Stasis . | . . . Rewire . | . . . Trap . | . . . Miscellaneous . | . . . Route ------- -11/Scrapyard -10/Materials (discovered 5 exits: [*Mat x3] / *Min / [*Sub]) -10/Subcaves History --------- Turn | Location | Event 7 | -11/Scrapyard | Discovered new exit (range 14) 70 | -11/Scrapyard | Entered Materials 291 | -10/Materials | Discovered new exit (range 8) 309 | -10/Materials | Build established: Mutant 366 | -10/Materials | Discovered new exit (range 10) 611 | -10/Materials | Discovered new exit (range 10) 664 | -10/Materials | Repaired Aluminum Leg 694 | -10/Materials | Repaired Ion Engine 721 | -10/Materials | Repaired Aluminum Leg 753 | -10/Materials | Repaired Lgt. Assault Rifle 843 | -10/Materials | Discovered new exit (range 16) 943 | -10/Materials | Core integrity fell below 50% 1028 | -10/Materials | Discovered new exit (range 9) 1104 | -10/Materials | Identified exit to Mines 1180 | -10/Materials | Core integrity fell below 20% 1223 | -10/Materials | Entered Subcaves 1328 | -10/Subcaves | Ambushed by swarm of Subdwellers 1338 | -10/Subcaves | Destroyed by S-10 Pest with Light Assault Rifle Last Messages --------------- AMBIENT_HEAT=-10 GOAL=ESCAPE 01224_ 42-WSZ(h): "Hey you don't look like the usual menacing locals. I'm on point searching for advanced tech we've heard is being developed in secret down here, seen anything like that?" 01227_ HV Slug penetrates Wall. 01230_ 42-WSZ(h) drops a Scrap Shield: "Protect yourself with this!" 01230_ HV Slug penetrates 8F-FZJ(R). 01230_ 8F-FZJ(R) suffers critical hit (Destroy). A mess of Twisted Machinery falls from the cavern ceiling. 01328_ 42-WSZ(h): "The Subs are coming!" 01330_ ZV-D3F(R) emerges from the Twisted Machinery. 01330_ HV Slug penetrates ZV-D3F(R). 01332_ MC-TAX(R) emerges from the Twisted Machinery. Map ----- +----------------------------------------------------+ | ?????????????????????????????????????????????????? | | ?????????????????????????????????????????????????? | | ?????????????????????????????????????????????????? | | ?????????????????????????????????????????????????? | | ?????????????????????????????????????????????????? | | ?????????????????????????????????????????????????? | | ?????????????????????????????????????????????????? | | ?????????????????????????????????????????????????? | | ?????????????????????????????????????????????????? | | ?????????????????????????????????????????????????? | | ?????????????????????????????????????????????????? | | ????????????????????? ?????????????????????????? | | ???????????????????? ?????????????????????????? | | ???????????????? ??? ?????????????????????????? | | ??????????????%* ???# #????????????????????????? | | ??????????????? ???# #???????????????????????? | | ???????????????# ##?# ###????????????????????? | | ???????????????# ??# ##???????????????????? | | ?????????????####s% ?# ##???####????#####??? | | ?????????????? ## ##?## ###### ##?? | | ??????????????? &% ### h ## #?? | | ???????????????? & % #?? | | ???????????????????# #?? | | ???????????????????# ![* R #?? | | ???????????????????# /%[ ## """##?? | | ???????????????????##### @ ### ""##??? | | ???????????????????????##### ##?## ##???? | | ???????????????????????????# ##### #???? | | ?????????????????????????### ### ###?? | | ????????????????????????## ##### #?? | | ???????????????????????## ##?## #?? | | ???????????????????????# #?## #?? | | ???????????????????????## ### #####?? | | ????????????????????????# ## ###?????? | | ????????????????????????# ##??????? | | ????????????????????????# ##?????? | | ????????????????????????## #?????? | | ?????????????????????????# #?????? | | ?????????????????????????# ##?????? | | ?????????????????????###### ####??????? | | ????????????????????## ### ##?????????? | | ????????????????????# ## ## #??????????? | | ????????????????????# ## #??????????? | | ????????????????????## # ###??????????? | | ?????????????????????##### #???????????? | | ?????????????????????????## # #???????????? | | ??????????????????????????# # ##???????????? | | ??????????????????????????# # ## ##???????????? | | ??????????????????????????### ## #???????????? | | ???????????????????????????# ##? #???????????? | +----------------------------------------------------+ Best States ------------- Heat Dissipation 35 Energy Generation 10 Energy Capacity 450 Matter Stores 300 Matter Capacity 300 Sight Range 16 Robot Scan Range 14 Terrain Scan Density 10 Evasion (%) 55 Targeting Accuracy 5 Item Schematics ----------------- None Robot Schematics ------------------ None Fabricated ------------ Nothing Alien Tech Used ----------------- None Achievements -------------- None Challenges ------------ None Game ------ Seed RainbowHeartNullifier Manual? 0 Play Time 00:32:01 Cumulative 17.8 hours Start 2025.03.18 @ 19:56:22 End 2025.03.18 @ 22:15:45 Sessions 4 Manual Loads 0 Difficulty Rogue Special Mode None Game No. 42 Rogue 29 Adventurer 13 Explorer 0 Win Type - Total 0 Types 0/0/0/0/0/0/0/0/0 Lore% 11 Gallery% 18 Achievement% 15 Wizard Run 0 Options --------- Layout 1 ASCII 0 Keyboard 0 Movement Mouse Keybinds 0 Fullscreen 1 Font 24/Terminus Map View 50x35 Zoom Use 2% Tactical HUD 1 Map Filters NONE Filters NONE Steam 1 RUN: 57b8e10e-55ff-4b5c-bbf5-0adaa2a40675